[Event "*** Titled Tuesday Blitz"]
[Site "Chess.com"]
[Date "2018.06.05"]
[Round "2"]
[White "Fandorine"]
[Black "milovanratkovic"]
[Result "0-1"]
[WhiteElo "2709"]
[BlackElo "2546"]
[TimeControl "180+2"]
[EndTime "13:26:38 PDT"]
[Termination "milovanratkovic won by resignation"]

1. e4 {[%clk 0:03:01.9]} 1... c6 {[%clk 0:02:58.8]} 2. d4 {[%clk 0:03:00.9]}
2... d5 {[%clk 0:03:00.5]} 3. e5 {[%clk 0:03:00.1]} 3... Bf5 {[%clk 0:03:01]} 4.
Nd2 {[%clk 0:03:00.3]} 4... e6 {[%clk 0:03:02]} 5. Nb3 {[%clk 0:03:00.9]} 5...
Nd7 {[%clk 0:03:02.1]} 6. Nf3 {[%clk 0:03:01.3]} 6... Bg6 {[%clk 0:03:00.4]} 7.
Be2 {[%clk 0:02:59.7]} 7... Nh6 {[%clk 0:03:00.8]} 8. c3 {[%clk 0:02:57.2]} 8...
Nf5 {[%clk 0:03:01.4]} 9. h4 {[%clk 0:02:54]} 9... Bh5 {[%clk 0:02:55.7]} 10. g3
{[%clk 0:02:43.9]} 10... Be7 {[%clk 0:02:50.9]} 11. Bf4 {[%clk 0:02:10.8]} 11...
Rc8 {[%clk 0:02:36.2]} 12. O-O {[%clk 0:02:10.6]} 12... Bxf3 {[%clk 0:02:20.5]}
13. Bxf3 {[%clk 0:02:11.3]} 13... g5 {[%clk 0:02:21.7]} 14. hxg5 {[%clk
0:02:08.6]} 14... Bxg5 {[%clk 0:02:23.5]} 15. Qd2 {[%clk 0:02:05.3]} 15... Rg8
{[%clk 0:02:23.9]} 16. Bg4 {[%clk 0:01:40.8]} 16... Bxf4 {[%clk 0:02:16.6]} 17.
Qxf4 {[%clk 0:01:42.7]} 17... Qg5 {[%clk 0:02:15.1]} 18. Qxg5 {[%clk 0:01:35.8]}
18... Rxg5 {[%clk 0:02:16.9]} 19. Bxf5 {[%clk 0:01:27.3]} 19... Rxf5 {[%clk
0:02:18.7]} 20. f4 {[%clk 0:01:24.9]} 20... Ke7 {[%clk 0:02:19.5]} 21. Kf2
{[%clk 0:01:21.9]} 21... h5 {[%clk 0:02:10.9]} 22. Rh1 {[%clk 0:01:18.8]} 22...
f6 {[%clk 0:02:11.7]} 23. Rae1 {[%clk 0:01:17]} 23... fxe5 {[%clk 0:02:11.6]}
24. dxe5 {[%clk 0:01:16.9]} 24... c5 {[%clk 0:02:13]} 25. Rh4 {[%clk 0:01:14.5]}
25... Rcf8 {[%clk 0:01:42.9]} 26. Kg2 {[%clk 0:01:11.2]} 26... Rg8 {[%clk
0:01:40]} 27. Kh3 {[%clk 0:00:55.4]} 27... b6 {[%clk 0:01:39.9]} 28. c4 {[%clk
0:00:23]} 28... Nf8 {[%clk 0:01:32.2]} 29. Nd2 {[%clk 0:00:24]} 29... Ng6 {[%clk
0:01:31]} 30. Nf3 {[%clk 0:00:25.1]} 30... dxc4 {[%clk 0:01:24.8]} 31. Kh2
{[%clk 0:00:21.5]} 31... Nxh4 {[%clk 0:01:24.9]} 32. Nxh4 {[%clk 0:00:22.8]}
32... Rf7 {[%clk 0:01:26.3]} 33. Rd1 {[%clk 0:00:23.8]} 33... Rfg7 {[%clk
0:01:26.6]} 34. f5 {[%clk 0:00:21.4]} 34... Rxg3 {[%clk 0:01:21.4]} 35. f6+
{[%clk 0:00:22.3]} 35... Ke8 {[%clk 0:01:18.9]} 36. Rd6 {[%clk 0:00:22.6]} 36...
R3g4 {[%clk 0:01:05]} 37. Rxe6+ {[%clk 0:00:21.7]} 37... Kd7 {[%clk 0:01:06.1]}
38. Rd6+ {[%clk 0:00:22.8]} 38... Kc7 {[%clk 0:01:06.7]} 39. Nf5 {[%clk
0:00:15.9]} 39... R4g5 {[%clk 0:00:44]} 40. f7 {[%clk 0:00:13.3]} 40... Rf8
{[%clk 0:00:39.3]} 41. Rf6 {[%clk 0:00:14.1]} 41... Rxf5 {[%clk 0:00:35]} 42.
Rxf5 {[%clk 0:00:15.3]} 42... Kd7 {[%clk 0:00:36.9]} 43. Kg3 {[%clk 0:00:10]}
43... Ke6 {[%clk 0:00:36.8]} 44. Rxh5 {[%clk 0:00:10.5]} 44... Rxf7 {[%clk
0:00:37.2]} 45. Rh4 {[%clk 0:00:10.2]} 45... Kxe5 {[%clk 0:00:35.6]} 46. Rxc4
{[%clk 0:00:10.7]} 46... Kd5 {[%clk 0:00:36.4]} 47. Rc2 {[%clk 0:00:07.4]} 47...
c4 {[%clk 0:00:35.6]} 48. Rd2+ {[%clk 0:00:08.8]} 48... Kc5 {[%clk 0:00:35.9]}
49. a3 {[%clk 0:00:10.1]} 49... b5 {[%clk 0:00:36.6]} 50. Rd8 {[%clk 0:00:11]}
50... a5 {[%clk 0:00:28.4]} 51. Rc8+ {[%clk 0:00:09.3]} 51... Kb6 {[%clk
0:00:29.1]} 52. Rb8+ {[%clk 0:00:09.8]} 52... Ka6 {[%clk 0:00:29.3]} 53. Kg2
{[%clk 0:00:08.5]} 53... Rb7 {[%clk 0:00:29.1]} 54. Ra8+ {[%clk 0:00:08.6]}
54... Kb6 {[%clk 0:00:30.3]} 55. Kf3 {[%clk 0:00:09.8]} 55... b4 {[%clk
0:00:29.2]} 56. axb4 {[%clk 0:00:10.6]} 56... axb4 {[%clk 0:00:31]} 57. Ke3
{[%clk 0:00:09.8]} 57... Rd7 {[%clk 0:00:31.5]} 58. Rc8 {[%clk 0:00:10.5]} 58...
Kb5 {[%clk 0:00:32.1]} 59. Ke2 {[%clk 0:00:11.5]} 59... Rd4 {[%clk 0:00:29.6]}
60. Ra8 {[%clk 0:00:08.6]} 60... Rd3 {[%clk 0:00:26.6]} 61. Rb8+ {[%clk
0:00:03.8]} 61... Ka4 {[%clk 0:00:26.6]} 0-1

[Event "*** Titled Tuesday Blitz"]
[Site "Chess.com"]
[Date "2018.06.05"]
[Round "2"]
[White "Firouzja2003"]
[Black "comedy_of_errors"]
[Result "1-0"]
[WhiteElo "2949"]
[BlackElo "2583"]
[TimeControl "180+2"]
[EndTime "13:26:54 PDT"]
[Termination "Firouzja2003 won by resignation"]

1. e4 {[%clk 0:03:01.9]} 1... e6 {[%clk 0:03:00.8]} 2. d4 {[%clk 0:02:59.8]}
2... d5 {[%clk 0:03:02.3]} 3. Nd2 {[%clk 0:03:01.4]} 3... dxe4 {[%clk
0:03:03.3]} 4. Nxe4 {[%clk 0:03:02.1]} 4... Bd7 {[%clk 0:03:05.2]} 5. Nf3 {[%clk
0:02:59.9]} 5... Bc6 {[%clk 0:03:06.4]} 6. Bd3 {[%clk 0:03:01.5]} 6... Nd7
{[%clk 0:03:07.6]} 7. c3 {[%clk 0:03:02.8]} 7... Ngf6 {[%clk 0:03:08.8]} 8.
Nxf6+ {[%clk 0:03:04.1]} 8... Nxf6 {[%clk 0:03:08.5]} 9. Bf4 {[%clk 0:03:05.6]}
9... Bxf3 {[%clk 0:03:07]} 10. Qxf3 {[%clk 0:03:05]} 10... c6 {[%clk 0:03:08.9]}
11. O-O {[%clk 0:03:01.4]} 11... Be7 {[%clk 0:03:09.6]} 12. a4 {[%clk
0:03:00.7]} 12... a5 {[%clk 0:03:07.7]} 13. Rfe1 {[%clk 0:02:57.1]} 13... O-O
{[%clk 0:03:07.7]} 14. Qh3 {[%clk 0:02:57.8]} 14... Re8 {[%clk 0:03:03]} 15. Re3
{[%clk 0:02:53.8]} 15... g6 {[%clk 0:03:01.7]} 16. Be5 {[%clk 0:02:35.7]} 16...
Bd6 {[%clk 0:02:53.6]} 17. Rf3 {[%clk 0:02:17.9]} 17... Bxe5 {[%clk 0:01:58.7]}
18. dxe5 {[%clk 0:02:19.8]} 18... Nh5 {[%clk 0:01:38.4]} 19. g4 {[%clk
0:02:18.9]} 19... Ng7 {[%clk 0:01:39]} 20. Qh6 {[%clk 0:02:18.6]} 20... Qd5
{[%clk 0:01:33.6]} 21. Re3 {[%clk 0:02:06.8]} 21... Rad8 {[%clk 0:01:17.1]} 22.
Rae1 {[%clk 0:02:05.8]} 22... Qxd3 {[%clk 0:01:03.6]} 23. Rxd3 {[%clk
0:02:03.9]} 23... Rxd3 {[%clk 0:01:05.5]} 24. Re3 {[%clk 0:01:59.2]} 24... Red8
{[%clk 0:01:03.6]} 25. Rxd3 {[%clk 0:01:54.2]} 25... Rxd3 {[%clk 0:01:05.5]} 26.
Kg2 {[%clk 0:01:52.2]} 26... Ne8 {[%clk 0:01:02.4]} 27. Qg5 {[%clk 0:01:51.4]}
27... Rd7 {[%clk 0:01:00.3]} 28. h4 {[%clk 0:01:44.5]} 28... Kg7 {[%clk
0:00:59]} 29. h5 {[%clk 0:01:39.3]} 29... h6 {[%clk 0:00:59.9]} 30. Qe3 {[%clk
0:01:40.2]} 30... gxh5 {[%clk 0:00:54.8]} 31. gxh5 {[%clk 0:01:40.9]} 31... Nc7
{[%clk 0:00:56]} 32. c4 {[%clk 0:01:30.1]} 32... Na6 {[%clk 0:00:50.8]} 33. Qb6
{[%clk 0:01:21.7]} 33... Nb4 {[%clk 0:00:51.9]} 34. Qxa5 {[%clk 0:01:08.8]}
34... Nd3 {[%clk 0:00:53.1]} 35. b4 {[%clk 0:00:42.2]} 35... Nf4+ {[%clk
0:00:52.3]} 36. Kf3 {[%clk 0:00:43.1]} 36... Nxh5 {[%clk 0:00:53.8]} 37. b5
{[%clk 0:00:44.4]} 37... Rd3+ {[%clk 0:00:51.1]} 38. Kg4 {[%clk 0:00:34.5]}
38... Kg6 {[%clk 0:00:48.8]} 39. Qa8 {[%clk 0:00:25.6]} 39... f5+ {[%clk
0:00:49.5]} 40. exf6 {[%clk 0:00:22.5]} 40... Nxf6+ {[%clk 0:00:50.4]} 41. Kf4
{[%clk 0:00:19]} 41... Rd4+ {[%clk 0:00:22]} 42. Kf3 {[%clk 0:00:20.1]} 42...
Rxc4 {[%clk 0:00:23.1]} 43. Qxb7 {[%clk 0:00:21.1]} 43... cxb5 {[%clk
0:00:24.4]} 44. Qxb5 {[%clk 0:00:17]} 44... Rc3+ {[%clk 0:00:24.1]} 45. Kg2
{[%clk 0:00:17.2]} 45... Nd5 {[%clk 0:00:25.3]} 46. Qb8 {[%clk 0:00:17.3]} 46...
h5 {[%clk 0:00:22.8]} 47. a5 {[%clk 0:00:16.1]} 47... h4 {[%clk 0:00:23.5]} 48.
a6 {[%clk 0:00:14.4]} 48... h3+ {[%clk 0:00:25.4]} 49. Kh2 {[%clk 0:00:14.7]}
49... Kf5 {[%clk 0:00:21.4]} 50. a7 {[%clk 0:00:12.7]} 50... Nc7 {[%clk
0:00:23.3]} 51. a8=Q {[%clk 0:00:07.2]} 51... Nxa8 {[%clk 0:00:24.2]} 52. Qxa8
{[%clk 0:00:09.1]} 52... Rd3 {[%clk 0:00:21.4]} 53. Qf8+ {[%clk 0:00:09.2]}
53... Ke5 {[%clk 0:00:22]} 54. Qg7+ {[%clk 0:00:10]} 54... Kd5 {[%clk
0:00:22.6]} 55. Qg6 {[%clk 0:00:10.5]} 55... Rc3 {[%clk 0:00:20.5]} 56. Qg5+
{[%clk 0:00:10.8]} 56... e5 {[%clk 0:00:21.5]} 57. Qd2+ {[%clk 0:00:11.7]} 57...
Kc4 {[%clk 0:00:22]} 58. Qe2+ {[%clk 0:00:12.6]} 58... Kd4 {[%clk 0:00:23]} 59.
f3 {[%clk 0:00:11.2]} 59... Re3 {[%clk 0:00:23.1]} 60. Qd2+ {[%clk 0:00:12]}
60... Rd3 {[%clk 0:00:24.6]} 61. Qb4+ {[%clk 0:00:12.5]} 61... Ke3 {[%clk
0:00:25.4]} 62. Qe4+ {[%clk 0:00:13.2]} 62... Kd2 {[%clk 0:00:26.7]} 63. Kxh3
{[%clk 0:00:12.8]} 63... Re3 {[%clk 0:00:26.9]} 64. Qd5+ {[%clk 0:00:13.6]}
64... Ke2 {[%clk 0:00:28.2]} 65. Kg4 {[%clk 0:00:14.6]} 65... Kf2 {[%clk
0:00:27.6]} 66. Qc5 {[%clk 0:00:12.8]} 66... Ke2 {[%clk 0:00:28.8]} 67. Qc2+
{[%clk 0:00:13.7]} 67... Ke1 {[%clk 0:00:29.2]} 68. Kg3 {[%clk 0:00:15]} 68...
e4 {[%clk 0:00:26.7]} 69. Qf2+ {[%clk 0:00:15.6]} 1-0

[Event "*** Titled Tuesday Blitz"]
[Site "Chess.com"]
[Date "2018.06.05"]
[Round "2"]
[White "GameOverBro"]
[Black "florianschwabeneder"]
[Result "0-1"]
[WhiteElo "2392"]
[BlackElo "2381"]
[TimeControl "180+2"]
[EndTime "13:27:07 PDT"]
[Termination "florianschwabeneder won by resignation"]

1. e4 {[%clk 0:03:01.9]} 1... e5 {[%clk 0:02:59.6]} 2. Nf3 {[%clk 0:03:01.9]}
2... Nc6 {[%clk 0:03:00.7]} 3. Bb5 {[%clk 0:03:02.7]} 3... a6 {[%clk 0:03:00.3]}
4. Ba4 {[%clk 0:03:03.8]} 4... g6 {[%clk 0:03:01.1]} 5. O-O {[%clk 0:03:00.7]}
5... Bg7 {[%clk 0:03:01.6]} 6. c3 {[%clk 0:02:59.5]} 6... d6 {[%clk 0:03:01.1]}
7. h3 {[%clk 0:02:58.9]} 7... Nf6 {[%clk 0:02:55.7]} 8. Bxc6+ {[%clk 0:02:44]}
8... bxc6 {[%clk 0:02:56.2]} 9. d4 {[%clk 0:02:45.5]} 9... exd4 {[%clk
0:02:51.3]} 10. cxd4 {[%clk 0:02:33.7]} 10... O-O {[%clk 0:02:39.4]} 11. Nc3
{[%clk 0:02:33.3]} 11... Re8 {[%clk 0:02:39.4]} 12. Re1 {[%clk 0:02:32.5]} 12...
Nd7 {[%clk 0:02:20.8]} 13. Bg5 {[%clk 0:02:32.5]} 13... Bf6 {[%clk 0:02:08.4]}
14. Qd2 {[%clk 0:02:25.9]} 14... Bxg5 {[%clk 0:02:04.5]} 15. Nxg5 {[%clk
0:02:27.8]} 15... c5 {[%clk 0:02:02.2]} 16. f4 {[%clk 0:02:23.4]} 16... cxd4
{[%clk 0:01:59.6]} 17. Qxd4 {[%clk 0:02:24.1]} 17... Nc5 {[%clk 0:01:58.5]} 18.
Rad1 {[%clk 0:02:14.5]} 18... Ne6 {[%clk 0:01:53]} 19. Qd5 {[%clk 0:02:02.1]}
19... Rb8 {[%clk 0:01:48.7]} 20. Nxf7 {[%clk 0:01:46.4]} 20... Kxf7 {[%clk
0:01:48.7]} 21. f5 {[%clk 0:01:47.4]} 21... Kg7 {[%clk 0:01:43.2]} 22. fxe6
{[%clk 0:01:46]} 22... Bxe6 {[%clk 0:01:44.1]} 23. Qd4+ {[%clk 0:01:44.2]} 23...
Qf6 {[%clk 0:01:44.6]} 24. b3 {[%clk 0:01:32.3]} 24... Qxd4+ {[%clk 0:01:28.9]}
25. Rxd4 {[%clk 0:01:34.2]} 25... a5 {[%clk 0:01:24.4]} 26. Kf2 {[%clk
0:01:31.5]} 26... Rb4 {[%clk 0:01:24.3]} 27. Red1 {[%clk 0:01:27.6]} 27... Reb8
{[%clk 0:01:20.8]} 28. Ke3 {[%clk 0:01:26.7]} 28... Kf6 {[%clk 0:01:19.6]} 29.
Nd5+ {[%clk 0:01:08.9]} 29... Bxd5 {[%clk 0:01:18.6]} 30. Rf1+ {[%clk
0:00:59.4]} 30... Ke7 {[%clk 0:01:15.2]} 31. Rxd5 {[%clk 0:00:56.7]} 31... a4
{[%clk 0:01:13.3]} 32. bxa4 {[%clk 0:00:48.2]} 32... Rxa4 {[%clk 0:01:13.5]} 33.
Rd2 {[%clk 0:00:46.9]} 33... Rbb4 {[%clk 0:01:09]} 34. Rf4 {[%clk 0:00:45.7]}
34... Ra3+ {[%clk 0:01:09.9]} 35. Rd3 {[%clk 0:00:37.1]} 35... Rxa2 {[%clk
0:01:09.4]} 36. Rc3 {[%clk 0:00:24.7]} 36... c5 {[%clk 0:01:05]} 37. g4 {[%clk
0:00:21.3]} 37... Raa4 {[%clk 0:00:54.5]} 38. g5 {[%clk 0:00:20.1]} 38... Ke6
{[%clk 0:00:31.1]} 39. Rd3 {[%clk 0:00:20.9]} 39... Ra6 {[%clk 0:00:26.3]} 40.
Rf6+ {[%clk 0:00:21.1]} 40... Ke7 {[%clk 0:00:26]} 41. e5 {[%clk 0:00:22]} 41...
Rbb6 {[%clk 0:00:25]} 42. e6 {[%clk 0:00:21.3]} 42... d5 {[%clk 0:00:21.7]} 43.
Rxd5 {[%clk 0:00:20.5]} 43... Rxe6+ {[%clk 0:00:21.8]} 44. Rxe6+ {[%clk
0:00:22]} 44... Rxe6+ {[%clk 0:00:22.9]} 45. Kf4 {[%clk 0:00:23.2]} 45... Rc6
{[%clk 0:00:23.5]} 46. Rd3 {[%clk 0:00:24.7]} 46... c4 {[%clk 0:00:24.4]} 47.
Re3+ {[%clk 0:00:26.2]} 47... Kd6 {[%clk 0:00:24.9]} 48. Rc3 {[%clk 0:00:27.2]}
48... Kd5 {[%clk 0:00:25.9]} 49. Ke3 {[%clk 0:00:28.5]} 49... Re6+ {[%clk
0:00:26.5]} 50. Kd2 {[%clk 0:00:29.5]} 50... Kd4 {[%clk 0:00:28]} 51. Ra3 {[%clk
0:00:31.4]} 51... Re5 {[%clk 0:00:26.1]} 52. h4 {[%clk 0:00:31.7]} 52... Rf5
{[%clk 0:00:27.2]} 53. Ra7 {[%clk 0:00:32.3]} 53... Rf2+ {[%clk 0:00:27.9]} 54.
Ke1 {[%clk 0:00:33.7]} 54... Rh2 {[%clk 0:00:28.6]} 55. Rxh7 {[%clk 0:00:34.9]}
55... c3 {[%clk 0:00:25]} 56. h5 {[%clk 0:00:36.1]} 56... c2 {[%clk 0:00:21.7]}
57. Rc7 {[%clk 0:00:36.4]} 57... gxh5 {[%clk 0:00:14.1]} 58. g6 {[%clk
0:00:36.4]} 58... Kd3 {[%clk 0:00:15.3]} 59. Rd7+ {[%clk 0:00:31.2]} 59... Kc3
{[%clk 0:00:16.1]} 60. Rc7+ {[%clk 0:00:31.7]} 60... Kb2 {[%clk 0:00:17.3]} 61.
Rb7+ {[%clk 0:00:33]} 61... Kc1 {[%clk 0:00:18.2]} 62. g7 {[%clk 0:00:33.6]}
62... Rg2 {[%clk 0:00:19.4]} 63. Kf1 {[%clk 0:00:34.9]} 63... Rg6 {[%clk
0:00:17.1]} 64. Ke2 {[%clk 0:00:26]} 64... h4 {[%clk 0:00:14]} 65. Kd3 {[%clk
0:00:24.6]} 65... h3 {[%clk 0:00:14.5]} 66. Rc7 {[%clk 0:00:21]} 66... Rg3+
{[%clk 0:00:15]} 67. Ke2 {[%clk 0:00:19.7]} 67... h2 {[%clk 0:00:15.8]} 68. g8=Q
{[%clk 0:00:20.4]} 68... Rxg8 {[%clk 0:00:15.3]} 69. Rh7 {[%clk 0:00:21.8]}
69... Re8+ {[%clk 0:00:12.2]} 70. Kd3 {[%clk 0:00:22.9]} 70... Kd1 {[%clk
0:00:09.3]} 71. Rxh2 {[%clk 0:00:23.2]} 71... c1=Q {[%clk 0:00:10.4]} 72. Rh1+
{[%clk 0:00:24.2]} 72... Re1 {[%clk 0:00:11.1]} 0-1

[Event "*** Titled Tuesday Blitz"]
[Site "Chess.com"]
[Date "2018.06.05"]
[Round "2"]
[White "ChessWarrior7197"]
[Black "Anahita_Gholami"]
[Result "0-1"]
[WhiteElo "2677"]
[BlackElo "2517"]
[TimeControl "180+2"]
[EndTime "13:27:16 PDT"]
[Termination "Anahita_Gholami won by resignation"]

1. e4 {[%clk 0:03:01.9]} 1... e5 {[%clk 0:03:01.1]} 2. Nf3 {[%clk 0:03:02.4]}
2... Nc6 {[%clk 0:03:02]} 3. Bb5 {[%clk 0:03:02]} 3... a6 {[%clk 0:03:03]} 4.
Ba4 {[%clk 0:03:03.1]} 4... Nf6 {[%clk 0:03:04.3]} 5. O-O {[%clk 0:03:04.4]}
5... b5 {[%clk 0:03:05.3]} 6. Bb3 {[%clk 0:03:05.1]} 6... Bc5 {[%clk 0:03:06.2]}
7. d3 {[%clk 0:03:04.6]} 7... d6 {[%clk 0:03:06.5]} 8. h3 {[%clk 0:03:03]} 8...
O-O {[%clk 0:03:07.1]} 9. a4 {[%clk 0:03:02.6]} 9... Rb8 {[%clk 0:02:59.3]} 10.
axb5 {[%clk 0:03:02.4]} 10... axb5 {[%clk 0:03:01.2]} 11. Be3 {[%clk 0:03:01.7]}
11... Bb6 {[%clk 0:02:58.2]} 12. Nc3 {[%clk 0:02:59.8]} 12... Ne7 {[%clk
0:02:53.4]} 13. d4 {[%clk 0:02:47.9]} 13... Ng6 {[%clk 0:02:25.8]} 14. Re1
{[%clk 0:02:38.9]} 14... c6 {[%clk 0:02:07.8]} 15. Qd3 {[%clk 0:02:11.2]} 15...
Qe7 {[%clk 0:01:47.3]} 16. dxe5 {[%clk 0:02:06.8]} 16... Nxe5 {[%clk 0:01:38]}
17. Nxe5 {[%clk 0:01:59.6]} 17... dxe5 {[%clk 0:01:39.9]} 18. Bxb6 {[%clk
0:02:00.9]} 18... Rxb6 {[%clk 0:01:41.8]} 19. Qe3 {[%clk 0:02:02.7]} 19... Rb7
{[%clk 0:01:37.7]} 20. Ra8 {[%clk 0:01:58.8]} 20... Be6 {[%clk 0:00:54.3]} 21.
Rxf8+ {[%clk 0:01:59.1]} 21... Kxf8 {[%clk 0:00:56.2]} 22. Bxe6 {[%clk 0:02:00]}
22... Qxe6 {[%clk 0:00:58.1]} 23. Qc5+ {[%clk 0:02:01.1]} 23... Kg8 {[%clk
0:00:58.7]} 24. Ra1 {[%clk 0:02:02.1]} 24... h6 {[%clk 0:00:50.4]} 25. Ra6
{[%clk 0:01:57.3]} 25... b4 {[%clk 0:00:43.4]} 26. Rxc6 {[%clk 0:01:49.2]} 26...
Qd7 {[%clk 0:00:44.3]} 27. Nd5 {[%clk 0:00:59.4]} 27... Nxe4 {[%clk 0:00:43.9]}
28. Qc4 {[%clk 0:00:58]} 28... Nd6 {[%clk 0:00:37.9]} 29. Qa6 {[%clk 0:00:53.5]}
29... Nf5 {[%clk 0:00:25.8]} 30. Rc5 {[%clk 0:00:44.1]} 30... Ra7 {[%clk
0:00:25.3]} 31. Qc8+ {[%clk 0:00:42.6]} 31... Qxc8 {[%clk 0:00:24.9]} 32. Rxc8+
{[%clk 0:00:44.5]} 32... Kh7 {[%clk 0:00:26.8]} 33. Nxb4 {[%clk 0:00:46]} 33...
Ra1+ {[%clk 0:00:26]} 34. Kh2 {[%clk 0:00:47.3]} 34... Rb1 {[%clk 0:00:24.1]}
35. b3 {[%clk 0:00:45.4]} 35... f6 {[%clk 0:00:21.7]} 36. Nd5 {[%clk 0:00:43.9]}
36... Rf1 {[%clk 0:00:20]} 37. b4 {[%clk 0:00:38.6]} 37... Rb1 {[%clk
0:00:18.1]} 38. c3 {[%clk 0:00:36.7]} 38... h5 {[%clk 0:00:19.3]} 39. Ne3 {[%clk
0:00:37.6]} 39... Nd6 {[%clk 0:00:19.6]} 40. Rc6 {[%clk 0:00:38.5]} 40... Ne4
{[%clk 0:00:21]} 41. f3 {[%clk 0:00:38]} 41... Nf2 {[%clk 0:00:22.1]} 42. Kg3
{[%clk 0:00:39.3]} 42... Nd3 {[%clk 0:00:23.2]} 43. Rc7 {[%clk 0:00:38.5]} 43...
Nf4 {[%clk 0:00:24.1]} 44. Nf5 {[%clk 0:00:33.5]} 44... Kg6 {[%clk 0:00:25.2]}
45. Nh4+ {[%clk 0:00:27.8]} 45... Kh6 {[%clk 0:00:25.4]} 46. Nf5+ {[%clk
0:00:28.1]} 46... Kg6 {[%clk 0:00:26.4]} 47. Ne3 {[%clk 0:00:22]} 47... Rb2
{[%clk 0:00:23.8]} 48. Kh2 {[%clk 0:00:16]} 48... Re2 {[%clk 0:00:23.4]} 49. Nf1
{[%clk 0:00:14.8]} 49... Rxg2+ {[%clk 0:00:24.1]} 50. Kh1 {[%clk 0:00:16.7]}
50... Rf2 {[%clk 0:00:24.2]} 51. Ng3 {[%clk 0:00:15.7]} 51... Rxf3 {[%clk
0:00:23.8]} 52. Ne4 {[%clk 0:00:17.1]} 52... Rxh3+ {[%clk 0:00:24.4]} 53. Kg1
{[%clk 0:00:18.5]} 53... Re3 {[%clk 0:00:25.3]} 54. Nd6 {[%clk 0:00:16.1]} 54...
Rxc3 {[%clk 0:00:24.9]} 55. Rxc3 {[%clk 0:00:15.2]} 55... Ne2+ {[%clk
0:00:25.9]} 56. Kf2 {[%clk 0:00:17.1]} 56... Nxc3 {[%clk 0:00:27.8]} 57. b5
{[%clk 0:00:19]} 57... Nd5 {[%clk 0:00:28.8]} 58. Nc4 {[%clk 0:00:18.6]} 58...
h4 {[%clk 0:00:29.9]} 59. Kf3 {[%clk 0:00:18.4]} 59... Kf5 {[%clk 0:00:29.5]}
60. Nd6+ {[%clk 0:00:17.8]} 60... Ke6 {[%clk 0:00:30.2]} 61. Nc4 {[%clk
0:00:18.8]} 61... g5 {[%clk 0:00:30.9]} 62. b6 {[%clk 0:00:18.6]} 62... Nxb6
{[%clk 0:00:31.8]} 63. Nxb6 {[%clk 0:00:19.3]} 63... f5 {[%clk 0:00:33.7]} 64.
Nc4 {[%clk 0:00:20.3]} 64... g4+ {[%clk 0:00:35]} 65. Ke3 {[%clk 0:00:21.2]}
65... h3 {[%clk 0:00:35.3]} 66. Kf2 {[%clk 0:00:22.4]} 66... f4 {[%clk
0:00:36.6]} 67. Nd2 {[%clk 0:00:23.5]} 67... Kf5 {[%clk 0:00:37.8]} 68. Nf1
{[%clk 0:00:23.7]} 68... e4 {[%clk 0:00:37.9]} 69. Kg1 {[%clk 0:00:25.1]} 69...
g3 {[%clk 0:00:38.7]} 70. Nd2 {[%clk 0:00:25.7]} 70... f3 {[%clk 0:00:35.9]} 71.
Nf1 {[%clk 0:00:25.5]} 71... Kf4 {[%clk 0:00:36.8]} 72. Nh2 {[%clk 0:00:25.1]}
72... gxh2+ {[%clk 0:00:36.7]} 73. Kh1 {[%clk 0:00:27]} 73... e3 {[%clk
0:00:37.2]} 74. Kxh2 {[%clk 0:00:28.5]} 74... e2 {[%clk 0:00:38.3]} 0-1